Cogmind - Beta 13 *** ADVENTURER MODE // 2024.07.18 @ 21:59:02 Player: grimmkin Result: Destroyed by P-60 Hacker with Shock Rifle Performance ------------- Evolutions (3) 1500 Regions Visited (6) 1200 Robots Destroyed (95) 475 Value Destroyed (3446) 3446 Prototype IDs (0) 0 Alien Tech Used (0) 0 Bonus (244) 244 TOTAL SCORE: 6865 Bonus ------- High Alert Combat Kills 44 Entered Garrisons 200 Cogmind --------- Core Integrity 0/700 Matter 4/300 Energy 100/100 System Corruption 15% Temperature Cool (0) Movement Core (1350) Ox26 Location -7/Factory Parts ------- > --- POWER (2) -------- (None) > --- PROPULSION (4) --- (None) > --- UTILITY (4) ------ Huge Storage Unit Advanced Visual Processing Unit > --- WEAPON (3) ------- (None) > --- INVENTORY (25) --- Huge Storage Unit Structural Scanner Improved Sensor Array Launcher Guidance Computer Weapon Cycler Transmission Jammer ECM Suite Particle Gun Particle Cannon Ion Cannon Flak Gun Mining Laser Peak State ------------ > --- POWER ------------ Improved Deuterium Engine Improved Deuterium Engine > --- PROPULSION ------- Light Treads Light Treads Armored Treads Armored Treads > --- UTILITY ---------- Improved Heat Sink Huge Storage Unit Large Matter Pod Advanced Visual Processing Unit > --- WEAPON ----------- Shock Rifle Pulse Rifle Heavy Mace > --- INVENTORY -------- Light Treads Huge Storage Unit Compact Matter Pod Structural Scanner Improved Sensor Array Weapon Cycler Transmission Jammer Hardlight Generator Pulse Rifle Particle Cannon Ion Cannon Heavy Assault Rifle Flak Cannon Flak Cannon Flak Cannon Mining Laser [Rating: 37] Favorites ----------- Power Improved Deuterium Engine Engine Improved Deuterium Engine Power Core Light Nuclear Core Propulsion Aluminum Leg Treads Armored Treads Leg Aluminum Leg Utility Advanced Visual Processing Unit Device Improved Heat Sink Storage Huge Storage Unit Processor Advanced Visual Processing Unit Weapon Pulse Rifle Energy Gun Pulse Rifle Energy Cannon Particle Cannon Ballistic Gun Flak Gun Ballistic Cannon Flak Cannon Launcher Rocket Launcher Impact Weapon Heavy Mace Piercing Weapon Spear Build | -11 -10 -9 -8 -7 -7 -7 ------- Run | Yrd Mat Mat Mat Fac Gar Fac Slots Evolved 6 | . . 2 2 2 . . Power 1 | . . . 1 . . . Propulsion 2 | . . . . 2 . . Utility 2 | . . 2 . . . . Weapon 1 | . . . 1 . . . Parts Attached 83 | 6 2 11 15 2 24 23 Power 11 | 1 . 1 2 . 3 4 Engine 6 | 1 . 1 2 . . 2 Core 5 | . . . . . 3 2 Reactor . | . . . . . . . Propulsion 16 | 2 . 3 . 2 8 1 Treads 8 | 2 . 3 . 2 1 . Leg 8 | . . . . . 7 1 Wheel . | . . . . . . . Hover . | . . . . . . . Flight . | . . . . . . . Utility 16 | 1 2 3 4 . 4 2 Device 8 | . 1 1 1 . 3 2 Storage 5 | 1 . 1 2 . 1 . Processor 3 | . 1 1 1 . . . Hackware . | . . . . . . . Protection . | . . . . . . . Artifact . | . . . . . . . Weapon 40 | 2 . 4 9 . 9 16 Energy Gun 12 | . . 3 4 . 1 4 Energy Cannon 3 | . . . 1 . 2 . Ballistic Gun 10 | 2 . 1 1 . 1 5 Ballistic Cannon 6 | . . . 1 . 4 1 Launcher 6 | . . . . . . 6 Special Weapon . | . . . . . . . Impact Weapon 2 | . . . 1 . 1 . Slashing Weapon . | . . . . . . . Piercing Weapon 1 | . . . 1 . . . Special Melee Weapon . | . . . . . . . Unidentified Prototypes . | . . . . . . . Parts Lost 40 | . . 1 1 . 16 22 Power 7 | . . . . . 3 4 Propulsion 12 | . . . . . 7 5 Utility 7 | . . 1 . . 3 3 Weapon 14 | . . . 1 . 3 10 Highest Loss Streak 12 | . . 1 1 . 12 7 To Critical Strikes 1 | . . . . . 1 . Average Slot Usage (%) 83 | . 98 96 99 100 81 73 Engine 7 | . 14 11 17 15 3 3 Core 4 | . . . . . 5 8 Treads 8 | . 28 21 18 30 5 . Leg 8 | . . . . . 15 11 Device 9 | . 10 10 9 7 6 11 Storage 13 | . 14 22 18 15 14 8 Processor 7 | . 2 8 9 7 7 7 Energy Gun 8 | . . 13 12 15 6 7 Ballistic Gun 5 | . 28 8 3 . . 6 Ballistic Cannon 1 | . . . 1 . 5 . Launcher 2 | . . . . . . 4 Impact Weapon 2 | . . . 3 7 6 1 Naked Turns . | . . . . . . . Heaviest Build 116 | 14 15 22 115 113 116 111 Greatest Support 80 | 40 40 40 40 80 80 42 Greatest Overweight (x) 33 | 2 . 6 2 1 33 32 Average Overweight (x) 2 | . . . 1 1 3 5 Largest Inventory Capacity 25 | 8 8 8 25 25 25 25 Average Capacity 21 | 6 8 8 19 25 25 25 Most Carried 19 | 3 5 8 19 17 17 19 Average Carried 12 | . 2 6 12 16 13 14 Final Capacity 25 | 8 8 8 25 25 25 25 Final Carried 17 | . 5 8 17 17 12 12 Class Distribution -------------------- 44% | Mutant 23% | Skirmisher 22% | Scavenger-Mutant 8% | Scavenger-Skirmisher Dominant Class ---------------- Mutant | -10/Materials Mutant | -9/Materials Mutant | -8/Materials Mutant | -7/Factory Scavenger-Mutant | -7/Garrison Skirmisher | -7/Factory Resources | -11 -10 -9 -8 -7 -7 -7 ----------- Run | Yrd Mat Mat Mat Fac Gar Fac Matter Collected 2059 | 215 215 348 394 . 396 491 Remotely . | . . . . . . . Salvage Created 2885 | . 313 636 606 . 690 640 Parts 200 | . 36 41 51 . 28 44 Haulers Intercepted . | . . . . . . . Recyclers Shooed 2 | . 1 . . . . 1 Parts Field Recycled . | . . . . . . . Retrieved Matter . | . . . . . . . Parts Self-Destructed . | . . . . . . . Prevented . | . . . . . . . Kills | -11 -10 -9 -8 -7 -7 -7 ------- Run | Yrd Mat Mat Mat Fac Gar Fac Combat Hostiles Destroyed 74 | . 11 12 11 . 23 17 Guns 48 | . 11 12 5 . 10 10 Cannons 15 | . . . 5 . 10 . AOE 11 | . . . 1 . 3 7 Classes Destroyed 11 | . 4 3 1 . 1 2 Worker 2 | . . 1 . . . 1 Builder 7 | . 1 1 2 . . 3 Recycler 1 | . . . . . . 1 Watcher 11 | . 2 2 4 . . 3 Swarmer 16 | . 8 . 2 . 4 2 Grunt 39 | . 3 9 3 . 17 7 Brawler 1 | . . 1 . . . . Duelist 1 | . . . . . . 1 Sentry 9 | . . 2 5 . . 2 Hunter 2 | . . . 1 . 1 . Programmer 6 | . . . . . 1 5 Best Kill Streak 10 | . 10 6 4 . 6 4 Combat Bots Only 9 | . 9 3 3 . 6 3 Max Kills in Single Turn 3 | . 2 1 2 . 2 3 Gunslinging . | . . . . . . . Exploded 2 | . . . 1 . 1 2 Melee . | . . . . . . . Uniques/NPCs Destroyed . | . . . . . . . Combat | -11 -10 -9 -8 -7 -7 -7 -------- Run | Yrd Mat Mat Mat Fac Gar Fac Hostile Shots Fired 723 | . 66 47 60 . 286 264 Missed 218 | . 23 11 14 . 84 86 Damage Taken 5598 | . 286 355 514 . 2310 2133 Core 882 | . 76 56 46 . 271 433 Absorbed by Shields 33 | . . . . . 33 . Ignored by Resistances 1657 | . 93 108 149 . 681 626 Core Remaining (%) 86 | 100 69 86 91 . . . Volleys Fired 213 | . 25 37 40 . 57 54 Largest 3 | . 2 2 2 . 3 3 Hottest 171 | . 40 101 126 . 157 171 Shots Fired 419 | . 50 69 75 . 112 113 Gun 321 | . 50 69 61 . 60 81 Cannon 71 | . . . 14 . 52 5 Launcher 27 | . . . . . . 27 Special . | . . . . . . . Kinetic 190 | . 50 44 17 . 49 30 Thermal 135 | . . 11 38 . 45 41 Explosive 27 | . . . . . . 27 Electromagnetic 67 | . . 14 20 . 18 15 Robot Hit Streak 36 | . 7 12 36 . 16 23 Robot Miss Streak 4 | . 3 2 2 . 4 4 Penetration Max . | . . . . . . . Secondary Targets 4 | . 4 . . . . . Max Gunslinging Chain 1 | . 1 . . . . . Shots Hit Robots 317 | . 31 50 57 . 91 88 Core Hits 226 | . 16 27 31 . 76 76 Critical Kills . | . . . . . . . Critical Parts Destroyed . | . . . . . . . Critical Strikes 6 | . . . 1 . 2 3 Burn 5 | . . . 1 . 2 2 Corrupt 1 | . . . . . . 1 Melee Attacks 1 | . . . 1 . . . Impact . | . . . . . . . Slashing . | . . . . . . . Piercing 1 | . . . 1 . . . Sneak Attacks . | . . . . . . . Combat Hostiles . | . . . . . . . Follow-up Attacks . | . . . . . . . Damage Inflicted 6985 | . 363 676 1145 . 2062 2739 Guns 3793 | . 363 676 773 . 823 1158 Cannons 1393 | . . . 290 . 1001 102 Explosions 1799 | . . . 82 . 238 1479 Melee . | . . . . . . . Ramming . | . . . . . . . Kinetic 2372 | . 363 400 187 . 954 468 Thermal 2274 | . . 101 626 . 824 723 Explosive 1418 | . . . . . . 1418 Electromagnetic 921 | . . 175 332 . 284 130 Impact . | . . . . . . . Slashing . | . . . . . . . Piercing . | . . . . . . . Highest Corruption 15 | . . . . . 8 15 Average Corruption 8 | . . . . . 7 9 Corruption Purged . | . . . . . . . Corruption Blocked . | . . . . . . . Effects 151 | . . . . . 40 111 Message Errors 37 | . . . . . 11 26 Matter Fused 33 | . . . . . 7 26 Heat Flow Errors 28 | . . . . . 10 18 Energy Discharges 15 | . . . . . 4 11 Parts Rejected 2 | . . . . . 1 1 Parts Fused 1 | . . . . . . 1 Data Loss (minor) 19 | . . . . . 3 16 Data Loss (major) 8 | . . . . . 2 6 Misfires 3 | . . . . . . 3 Alerts 3 | . . . . . 1 2 Weapon Failures 2 | . . . . . 1 1 Overload Shots . | . . . . . . . Overflow Damage 44 | . . . 11 . . 33 Projectiles 11 | . . . 11 . . . Explosions 33 | . . . . . . 33 Melee . | . . . . . . . Knockbacks 46 | . . . 1 . 45 . Impact . | . . . . . . . Kinetic 44 | . . . 1 . 43 . Secondary 2 | . . . . . 2 . Self-Inflicted Damage 337 | . . . 34 . 16 287 Shots 17 | . . . 1 . 1 15 Rammed . | . . . . . . . Targets Rammed . | . . . . . . . Kicked . | . . . . . . . Crushed . | . . . . . . . Highest Temperature 326 | . . 182 306 . 326 255 Average Temperature 84 | . . 87 90 . 91 75 Received Heat Transfer 1694 | . 48 192 189 . 974 291 Effects 3 | . . . 3 . . . Energy Bleed 3 | . . . 3 . . . Siege Activations . | . . . . . . . Robots Corrupted . | . . . . . . . Combat Hostiles . | . . . . . . . Parts Fried 2 | . . . 2 . . . Impact Corruptions . | . . . . . . . Robots Melted . | . . . . . . . Combat Hostiles . | . . . . . . . Parts Melted 7 | . . . . . 5 2 Heat Transferred 4522 | . . 259 1284 . 1479 1500 Parts Sabotaged . | . . . . . . . Parts Stolen . | . . . . . . . Parts Stripped . | . . . . . . . Power Chain Reactions 5 | . . . 1 . 3 1 Alert | -11 -10 -9 -8 -7 -7 -7 ------- Run | Yrd Mat Mat Mat Fac Gar Fac Peak Influence 538 | . 288 420 333 63 538 279 Initial 244 | . . 103 127 63 38 244 Average 168 | . 119 297 194 63 310 82 Maximum Alert Level 2 | . 1 2 1 . 2 1 Low Security (%) 60 | 100 66 18 59 100 17 84 Level 1 32 | . 33 61 40 . 57 15 Level 2 7 | . . 20 . . 24 . Level 3 . | . . . . . . . Level 4 . | . . . . . . . Level 5 . | . . . . . . . High Security . | . . . . . . . Max Security . | . . . . . . . Squads Dispatched 12 | . 1 1 1 1 . 8 Investigation 4 | . 1 1 1 . . 1 Extermination 6 | . . . . 1 . 5 Reinforcement 2 | . . . . . . 2 Assault . | . . . . . . . Garrison . | . . . . . . . Intercept . | . . . . . . . Searches Triggered . | . . . . . . . Construction Impeded 2 | . . . . . . 2 Haulers Reinforced . | . . . . . . . Active Scanning Responses . | . . . . . . . Cargo Convoy Interrupts . | . . . . . . . Stealth | -11 -10 -9 -8 -7 -7 -7 --------- Run | Yrd Mat Mat Mat Fac Gar Fac Distress Signals 8 | . 1 3 2 . . 2 Communications Jammed . | . . . . . . . Distress Signals . | . . . . . . . Times Spotted 102 | . 15 23 17 . 23 24 Peak Tracking Total 6 | . 6 5 4 1 6 3 Tactical Retreats 1 | . . 1 . . . . Traps | -11 -10 -9 -8 -7 -7 -7 ------- Run | Yrd Mat Mat Mat Fac Gar Fac Traps Triggered 5 | . . 1 1 . 1 2 Indirectly . | . . . . . . . Trap Hack Attempts . | . . . . . . . Triggered . | . . . . . . . Disarmed 10 | . . . 6 . . 4 Reprogrammed . | . . . . . . . Reused . | . . . . . . . Traps Extracted . | . . . . . . . Installed . | . . . . . . . Triggered . | . . . . . . . Machines | -11 -10 -9 -8 -7 -7 -7 ---------- Run | Yrd Mat Mat Mat Fac Gar Fac Machines Disabled 3 | . . 1 . . 1 1 Max in Single Turn 1 | . . 1 . . 1 1 Garrison Relay 1 | . . . . . 1 . Machines Repaired . | . . . . . . . Machines Dismantled . | . . . . . . . Machines Sabotaged . | . . . . . . . Overloaded Fab Kills . | . . . . . . . Hacking | -11 -10 -9 -8 -7 -7 -7 --------- Run | Yrd Mat Mat Mat Fac Gar Fac Machines Accessed 9 | . 2 1 2 1 . 3 Terminals 7 | . 2 1 2 . . 2 Fabricators . | . . . . . . . Repair Stations . | . . . . . . . Recycling Units 1 | . . . . . . 1 Scanalyzers . | . . . . . . . Garrison Access 1 | . . . . 1 . . Total Hacks 23 | . 5 3 7 1 . 7 Successful 16 | . 3 3 5 1 . 4 Failed 7 | . 2 . 2 . . 3 Catastrophic . | . . . . . . . Database Lockouts . | . . . . . . . Manual . | . . . . . . . Terminals 20 | . 5 3 7 . . 5 Fabricators . | . . . . . . . Repair Stations . | . . . . . . . Recycling Units 2 | . . . . . . 2 Scanalyzers . | . . . . . . . Garrison Access 1 | . . . . 1 . . Terminal Hacks 14 | . 3 3 5 . . 3 Record 7 | . 3 2 2 . . . Part Schematic 1 | . . . . . . 1 Open DSF 1 | . . . . . . 1 Level Access Points 1 | . . 1 . . . . Disarm Traps 2 | . . . 1 . . 1 Dispatch Records 1 | . . . 1 . . . Recall Investigation 1 | . . . 1 . . . Fabricator Hacks . | . . . . . . . Repair Station Hacks . | . . . . . . . Recycling Unit Hacks 1 | . . . . . . 1 Process 1 | . . . . . . 1 Scanalyzer . | . . . . . . . Garrison Access Hacks 1 | . . . . 1 . . Unlock Access 1 | . . . . 1 . . Unauthorized Hacks . | . . . . . . . Terminals . | . . . . . . . Fabricators . | . . . . . . . Repair Stations . | . . . . . . . Recycling Units . | . . . . . . . Scanalyzers . | . . . . . . . Garrison Access . | . . . . . . . Data Cores Recovered . | . . . . . . . Used . | . . . . . . . Hacking Detections 5 | . 1 1 1 . . 2 Full Trace Events 2 | . 1 1 . . . . Feedback Events . | . . . . . . . Feedback Blocked . | . . . . . . . Robot Schematics Acquired . | . . . . . . . Robots Built . | . . . . . . . Authchips . | . . . . . . . Time . | . . . . . . . Total Robot Build Rating . | . . . . . . . Part Schematics Acquired 1 | . . . . . . 1 Parts Built . | . . . . . . . Authchips . | . . . . . . . Time . | . . . . . . . Total Part Build Rating . | . . . . . . . Parts Repaired . | . . . . . . . Time . | . . . . . . . Parts Recycled . | . . . . . . . Recycled Matter 182 | . . . . . . 182 Retrieved Matter . | . . . . . . . Retrieved Components . | . . . . . . . Parts Scanalyzed . | . . . . . . . Part Schematics Acquired . | . . . . . . . Parts Damaged . | . . . . . . . Bothacking | -11 -10 -9 -8 -7 -7 -7 ------------ Run | Yrd Mat Mat Mat Fac Gar Fac Used RIF Installer . | . . . . . . . Robots Hacked . | . . . . . . . Non-combat . | . . . . . . . Combat . | . . . . . . . Robot Hacks Applied . | . . . . . . . Relay Couplers Released 3 | . . . . . 3 . Machine Destruction 3 | . . . . . 3 . Fabnet Peak Effective % . | . . . . . . . Robots Rewired . | . . . . . . . Allies Hacked . | . . . . . . . Hacks Repelled . | . . . . . . . Allies | -11 -10 -9 -8 -7 -7 -7 -------- Run | Yrd Mat Mat Mat Fac Gar Fac Total Allies . | . . . . . . . Largest Group . | . . . . . . . Highest-Rated Group . | . . . . . . . Highest-Rated Ally . | . . . . . . . Total Orders . | . . . . . . . Ally Attacks . | . . . . . . . Total Damage . | . . . . . . . Kills . | . . . . . . . Allies Corrupted . | . . . . . . . Allies Melted . | . . . . . . . Intel | -11 -10 -9 -8 -7 -7 -7 ------- Run | Yrd Mat Mat Mat Fac Gar Fac Robot Analysis Total . | . . . . . . . Derelict Logs Recovered . | . . . . . . . Drone Launches . | . . . . . . . Drone Recoveries . | . . . . . . . Exploration | -11 -10 -9 -8 -7 -7 -7 ------------- Run | Yrd Mat Mat Mat Fac Gar Fac Turns Passed 7162 | 75 341 667 990 327 1593 3169 Spaces Moved 1983 | 47 160 310 299 131 393 643 Core 124 | 23 . 3 . . 13 85 Treads 1023 | 24 160 307 299 131 102 . Legs 836 | . . . . . 278 558 Wheels . | . . . . . . . Hover . | . . . . . . . Flight . | . . . . . . . Fastest Speed 50 | 50 160 160 170 245 240 260 Average Speed 316 | 135 160 168 277 245 336 460 Slowest Speed 1700 | 160 160 350 330 245 1700 1650 Overloaded Moves . | . . . . . . . Propulsion Burnouts . | . . . . . . . Robots Hopped . | . . . . . . . Cave-ins Triggered . | . . . . . . . Exploration Rate (%) 21 | 4 29 31 30 3 39 11 Regions Visited 6 Branch Regions . Pre-discovered Areas . | . . . . . . . Known Exits Taken 2 | . . 1 . 1 . . Unknown Exits Taken 3 | 1 1 . 1 . . . Scrap Searched . | . . . . . . . Spaces Dug . | . . . . . . . Terrain Destroyed 150 | . . . 5 . . 145 Melee . | . . . . . . . Projectile 1 | . . . 1 . . . AOE 149 | . . . 4 . . 145 Terrain Rammed . | . . . . . . . Walls Destroyed . | . . . . . . . Machines Disabled . | . . . . . . . Actions | -11 -10 -9 -8 -7 -7 -7 --------- Run | Yrd Mat Mat Mat Fac Gar Fac Total 2486 | 58 195 389 388 139 561 756 Wait 90 | . 2 4 . 3 69 12 Move 1976 | 46 159 309 298 130 391 643 Hop . | . . . . . . . Pick Up 85 | 6 7 18 22 3 13 16 Fast Attach . | . . . . . . . Attach 62 | 6 1 9 8 2 19 17 Detach 7 | . . . 2 . 1 4 Swap 21 | . 1 2 7 . 5 6 Drop 26 | . . 10 10 1 1 4 Fire 213 | . 25 37 40 . 57 54 Melee 1 | . . . 1 . . . Ram . | . . . . . . . Kick . | . . . . . . . Crush . | . . . . . . . Escape Stasis 5 | . . . . . 5 . Rewire . | . . . . . . . Trap . | . . . . . . . Miscellaneous . | . . . . . . . Route ------- -11/Scrapyard -10/Materials -9/Materials (discovered 3 exits: *Mat x3) -8/Materials -7/Factory -7/Garrison (discovered 2 exits: *Fac x2) -7/Factory History --------- Turn | Location | Event 8 | -11/Scrapyard | Discovered new exit (range 15) 76 | -11/Scrapyard | Entered Materials 304 | -10/Materials | Build established: Mutant 340 | -10/Materials | Destroyed 9 combat bots 364 | -10/Materials | Discovered new exit (range 16) 417 | -10/Materials | Entered another Materials area 417 | -9/Materials | Evolved 2 slots: Utility x2 459 | -9/Materials | Identified exit to Materials 1084 | -9/Materials | Entered another Materials area 1084 | -8/Materials | Evolved 2 slots: Power x1, Weapon x1 2031 | -8/Materials | Discovered new exit (range 4) 2074 | -8/Materials | Entered Factory 2074 | -7/Factory | Evolved 2 slots: Propulsion x2 2219 | -7/Factory | Identified exit to Garrison 2401 | -7/Factory | Entered Garrison 2427 | -7/Garrison | Triggered checkpoint 2597 | -7/Garrison | Triggered checkpoint 2655 | -7/Garrison | Triggered checkpoint 2707 | -7/Garrison | Triggered checkpoint 2713 | -7/Garrison | Triggered checkpoint 2800 | -7/Garrison | Lost 12 parts (2p5n2u3w) 3425 | -7/Garrison | Discovered new exit (range 11) 3430 | -7/Garrison | Build established: Scavenger-Mutant 3454 | -7/Garrison | Attempted to access garrison exit controls, blocked by remote lockdown 3509 | -7/Garrison | Triggered checkpoint 3602 | -7/Garrison | Garrison Relay disabled 3905 | -7/Garrison | Triggered checkpoint 3984 | -7/Garrison | Discovered new exit (range 5) 3994 | -7/Garrison | Entered Factory 4569 | -7/Factory | Core integrity fell below 50% 4605 | -7/Factory | Lost 3 parts (1n1u1w) 5193 | -7/Factory | Build established: Scavenger-Skirmisher 5704 | -7/Factory | Build established: Skirmisher 6324 | -7/Factory | System corruption reached 10% 6359 | -7/Factory | Lost 4 parts (1p1n2w) 7095 | -7/Factory | Core integrity fell below 20% 7163 | -7/Factory | Destroyed by P-60 Hacker with Shock Rifle Last Messages --------------- 07009_ System corrupted: Heat flow error (+200). 07030_ System corrupted: Matter fused (-6). 07054_ LB WX974|WT1PMGCGWJ J96BI#M5HYUV:DFDNO 07074_ /9J%GCWUQADMTB4XGEOK|NCUN83%6%0 07078_ Mic. Nuclear Core destroyed. 07091_ Flak Gun destroyed. 07097_ Gatling Laser destroyed. 07098_ System corrupted: Matter fused (-8). 07109_ Rocket Launcher destroyed. 07130_ System corrupted: Matter fused (-7). 07130_ Rocket Launcher destroyed. 07130_ K-01 Serf cleans the Pressure Siphon. 07148_ Imp. Heat Sink destroyed. 07149_ K-01 Serf cleans the Pressure Siphon. 07153_ Rocket Launcher destroyed. 07153_ Destroyed Rocket Launcher. 07159_ System corrupted: Matter fused (-8). 07159_ K-01 Serf cleans the Pressure Siphon. Map ----- +----------------------------------------------------+ | ??????????????????????????????????????????# | | ??????????????????????????????????????????# | | ??????????????????????????????????????????# | | ??????????????????????????????????????????# * | | ???????????????????????????? ?????????????######## | | ???????????????????????????? ??????????????????# | | ???????????????????????????# ??????????????????# | | ???????????????????????????# ??????????????????# | | ???????????????????????????# ??????????????????# | | ???????????????????????????# ?????????????###### | | ???????????????????????????# ?????????????# | | ???????????????????????????# ?????????????# | | ???????????????????????????# ######???????# | | ???????????????????????????# ######### ## | | ???????????????????????????# ^ #? | | ????????????????????????????# ^ #? | | ????????????????????????????# ^"""" """" """" #? | | ?????????????????????######## ^ """"u"""" """" #? | | ?????????????????????# """" " """" ## | | ?????????????????????# k | | ??????????????######## " " """" " " | | ????????????# k """" """" "Y" | | ??????????????######## " "" """" """ | | ?????????????????????# | | ?????????????????????#### % | | ???????????????????######@p ## ########### | | ???????????????????# ! # ## # | | ???????????????????# = ## """ [ / | | ???????????????????# = / ## """ # | | ???????????????????# # ## """ # | | ???????????????????# """ """ + ## # | | ???????????????????# """ """ # ## """ # | | ???????????????????# """ """ # ## """ # | | ???????????????????# # ### ## """ # | | ???????????????????######+#### # # # # | | ??????????????????????# ??## # # ######## | | ???????????????????#### ## # # ########### | | ???????????????????# ## | | ???????????????????# ## ### #### # | | ??????????????????????# ?# # | | ??????????????????????###+??### #### | | ?????????????????????????????## ###### | | ??????????????????????????????# #?#### | | ??????????????????????????????#### #????# | | ?????????????????????????????????# #????# ##### | | ?????????????????????????????????# #????# # """ | | ?????????????????????????????????# #????# # """ | | ???????????????????????????????### ###??# # """ | | ???????????????????????????????# #### # """ | | ???????????????????????????????# T" # | +----------------------------------------------------+ Best States ------------- Heat Dissipation 48 Energy Generation 27 Energy Capacity 480 Matter Stores 450 Matter Capacity 450 Sight Range 20 Robot Scan Range 14 Terrain Scan Density 10 ECM Strength 1 Additional Mass Support 9 Resistance: KI 20 Resistance: TH 20 Resistance: EX 20 Resistance: EM 20 Resistance: I 20 Resistance: S 20 Resistance: P 20 Evasion (%) 40 Targeting Accuracy 5 Recoil Reduction 4 Offensive Hacking 10 Item Schematics ----------------- Power Sword | -7/Factory | Hacked Robot Schematics ------------------ None Fabricated ------------ Nothing Alien Tech Used ----------------- None Achievements -------------- Let's See Who's Tougher System Compromised Challenges ------------ None Game ------ Seed BehemothHellfireSplitter Manual? 0 Play Time 00:51:40 Cumulative 3.6 hours Start 2024.07.18 @ 21:05:59 End 2024.07.18 @ 21:59:02 Sessions 1 Manual Loads 0 Difficulty Adventurer Special Mode None Game No. 6 Rogue 0 Adventurer 6 Explorer 0 Win Type - Total 0 Types 0/0/0/0/0/0/0/0/0 Lore% 3 Gallery% 10 Achievement% 9 Wizard Run 0 Options --------- Layout 1 ASCII 0 Keyboard 0 Movement Mouse Keybinds 0 Fullscreen 1 Font 24/Smallcaps Map View 50x35 Zoom Use 0% Tactical HUD 1 Map Filters NONE Filters NONE Steam 1 RUN: 7a05ca99-c752-4f7f-827e-4acba042049c